fUST/lending_fUST_20260625
["ID","MTS","AMOUNT","RATE_DAILY","PERIOD"]
[426374704,1782334241000,-829.53,0.00028818,11]
[426374731,1782334241000,-500.0,0.00028818,11]
[426374707,1782334241000,-829.53,0.00028818,11]
[426374710,1782334241000,-829.53,0.00028818,11]
[426374701,1782334241000,-829.53,0.00028818,11]
[426374712,1782334241000,-829.53,0.00028818,11]
[426374697,1782334241000,-829.53,0.00028818,11]
[426374699,1782334241000,-829.53,0.00028818,11]
[426374716,1782334241000,-829.74811007,0.00028818,11]
[426374714,1782334241000,-829.53,0.00028818,11]
[426374719,1782334241000,-562.56830551,0.00028818,7]
[426374718,1782334241000,-500.0,0.00028818,7]
[426374720,1782334241000,-531.2,0.00028818,2]
[426374721,1782334241000,-500.0,0.00028818,11]
[426374695,1782334241000,-829.53,0.00028818,11]
[426374745,1782334241000,-648.3450317,0.00035197,2]
[426374797,1782334241000,-588.0764936,0.00040443,31]
[426374751,1782334241000,-411.90947398,0.00035629,2]
[426374782,1782334241000,-807.32495354,0.00040343,12]
[426374783,1782334241000,-214.55558267,0.00040443,31]
[426374784,1782334241000,-588.0764936,0.00040443,31]
[426374786,1782334241000,-588.0764936,0.00040443,31]
[426374787,1782334241000,-588.0764936,0.00040443,31]
[426374781,1782334241000,-173.3,0.000403,120]
[426374788,1782334241000,-588.0764936,0.00040443,31]
[426374785,1782334241000,-588.0764936,0.00040443,31]
[426374791,1782334241000,-588.0764936,0.00040443,31]
[426374789,1782334241000,-588.0764936,0.00040443,31]
[426374790,1782334241000,-588.0764936,0.00040443,31]
[426374792,1782334241000,-588.0764936,0.00040443,31]
[426374793,1782334241000,-588.0764936,0.00040443,31]
[426374794,1782334241000,-588.0764936,0.00040443,31]
[426374795,1782334241000,-588.0764936,0.00040443,31]
[426374796,1782334241000,-588.0764936,0.00040443,31]
[426374799,1782334241000,-588.0764936,0.00040443,31]
[426374801,1782334241000,-588.0764936,0.00040443,31]
[426374800,1782334241000,-588.0764936,0.00040443,31]
[426374803,1782334241000,-1309.81679593,0.00040444,30]
[426374798,1782334241000,-588.0764936,0.00040443,31]
[426374802,1782334241000,-24749.96460749,0.00040444,30]
[426374747,1782334241000,-151.92923051,0.00035546,20]
[426374780,1782334241000,-433.45811008,0.00040241,30]
[426374777,1782334241000,-1005.0,0.00039837,14]
[426374804,1782334241000,-5280.72880549,0.00040444,30]
[426374775,1782334241000,-969.54846043,0.00039837,14]
[426374750,1782334241000,-447.35603947,0.00035629,2]
[426374752,1782334241000,-414.86085417,0.00035629,2]
[426374755,1782334241000,-484.39120331,0.00035629,2]
[426374757,1782334241000,-764.35478723,0.0003715,2]
[426374760,1782334241000,-413.01413717,0.0003715,2]
[426374767,1782334241000,-173.3,0.000383,120]
[426374761,1782334241000,-743.42544691,0.0003715,2]
[426374758,1782334241000,-1358.85295507,0.0003715,2]
[426374749,1782334241000,-308.12222222,0.00035628,2]
[426374759,1782334241000,-2123.20774229,0.0003715,2]
[426374762,1782334241000,-1321.64523895,0.0003715,2]
[426374763,1782334241000,-151.92923051,0.00037201,22]
[426374764,1782334241000,-245.21790543,0.0003741,2]
[426374773,1782334241000,-173.3,0.000393,120]
[426374774,1782334241000,-173.3,0.000398,120]
[426374778,1782334241000,-250.17887546,0.00039837,14]
[426374765,1782334241000,-164.02470756,0.00037904,60]
[426374772,1782334241000,-169.4843662,0.00039152,5]
[426374768,1782334241000,-173.3,0.000388,120]
[426374770,1782334241000,-1391.07334342,0.00039152,5]
[426374779,1782334241000,-151.00000001,0.00040241,30]
[426374769,1782334241000,-151.92923051,0.00039078,25]
[426374766,1782334241000,-1509.932594,0.00038108,2]
[426374771,1782334241000,-737.99093346,0.00039152,5]
[426374776,1782334241000,-35.45153957,0.00039837,14]
[426374817,1782334243000,-830.92525342,0.00040444,30]
[426374816,1782334243000,-9376.999065,0.00040444,30]
[426374822,1782334246000,-150.79,0.000388,120]
[426374821,1782334246000,-150.79,0.000383,120]
[426374824,1782334246000,-150.79,0.000398,120]
[426374826,1782334246000,-1279.27988346,0.00040444,30]
[426374825,1782334246000,-150.79,0.000403,120]
[426374823,1782334246000,-150.79,0.000393,120]
[426374865,1782334247000,-300.0,0.00046,120]
[426374860,1782334247000,-150.79,0.000443,120]
[426374862,1782334247000,-173.0,0.00045,90]
[426374859,1782334247000,-1004.0,0.00044122,14]
[426374864,1782334247000,-150.79,0.000458,120]
[426374861,1782334247000,-150.79,0.000448,120]
[426374858,1782334247000,-300.0,0.00044,120]
[426374852,1782334247000,-150.79,0.000428,120]
[426374853,1782334247000,-150.79,0.000433,120]
[426374849,1782334247000,-4701.54,0.00042182,60]
[426374851,1782334247000,-150.79,0.000423,120]
[426374854,1782334247000,-151.92923051,0.00043493,30]
[426374855,1782334247000,-150.79,0.000438,120]
[426374845,1782334247000,-151.92923051,0.00041175,27]
[426374848,1782334247000,-300.0,0.00042,120]
[426374847,1782334247000,-150.79,0.000418,120]
[426374856,1782334247000,-4701.54,0.0004387,60]
[426374846,1782334247000,-150.79,0.000413,120]
[426374844,1782334247000,-150.79,0.000408,120]
[426374843,1782334247000,-348.0,0.00040565,120]
[426374842,1782334247000,-354.76,0.0004056,60]
[426374841,1782334247000,-4701.54,0.0004056,60]
[426374839,1782334247000,-569.37999998,0.00040444,30]
[426374840,1782334247000,-17660.50938923,0.00040444,30]
[426374850,1782334247000,-354.76,0.00042182,60]
[426374863,1782334247000,-150.79,0.000453,120]
[426374868,1782334247000,-150.79,0.000468,120]
[426374869,1782334247000,-1005.0,0.00046984,30]
[426374889,1782334247000,-4771.72514048,0.00048398,120]
[426374891,1782334247000,-42086.39718418,0.00048398,120]
[426374888,1782334247000,-73264.27084129,0.00048398,120]
[426374885,1782334247000,-151.0,0.00048398,120]
[426374890,1782334247000,-79364.13447561,0.00048398,120]
[426374887,1782334247000,-151.0,0.00048398,120]
[426374886,1782334247000,-151.0,0.00048398,120]
[426374884,1782334247000,-151.0,0.00048398,120]
[426374881,1782334247000,-151.0,0.00048398,120]
[426374880,1782334247000,-499.92,0.00048298,120]
[426374879,1782334247000,-163.253287,0.00048298,120]
[426374892,1782334247000,-501.0,0.00048398,120]
[426374877,1782334247000,-200.0,0.00048,120]
[426374878,1782334247000,-151.0,0.00048298,120]
[426374867,1782334247000,-150.79,0.000463,120]
[426374866,1782334247000,-151.92923051,0.00046032,32]
[426374872,1782334247000,-8057.843529,0.0004743,2]
[426374883,1782334247000,-151.0,0.00048398,120]
[426374870,1782334247000,-173.754039,0.00047332,2]
[426374873,1782334247000,-760.173916,0.0004743,2]
[426374882,1782334247000,-151.0,0.00048398,120]
[426374875,1782334247000,-651.27699737,0.00047539,2]
[426374871,1782334247000,-164.778698,0.00047332,21]
[426374876,1782334247000,-174.0,0.00047682,90]
[426374874,1782334247000,-476.14611672,0.00047535,2]
[426374954,1782334508000,500.0,0.00028815,60]
[426374955,1782334508000,502.27,0.00028815,60]
[426374956,1782334656000,841.65300922,7.6e-05,2]
[426374958,1782334657000,1624.224104,0.00026,30]
[426374957,1782334657000,5445.97769252,7.6e-05,2]
[426374959,1782334660000,2683.46869173,0.0001,2]
[426374960,1782334664000,1473.98581453,0.00012,2]
[426374961,1782334673000,664.70864527,0.00028815,120]
[426374962,1782334686000,166.0184864,0.00028815,120]
[426374963,1782334911000,-151.0,0.00019799,2]
[426374964,1782334942000,158.0,0.00028749,120]
[426374965,1782334944000,158.0,0.00029749,120]
[426374966,1782334950000,163.39804804,0.00028749,60]
[426374967,1782334951000,1000.0,0.0003,120]
[426374968,1782335080000,1700.0,0.0003,120]
[426374971,1782335138000,-415.94094622,0.00019502,2]
[426374972,1782335157000,160.0,0.00028749,30]
[426374973,1782335227000,-292.98932141,0.00019502,2]
[426374974,1782335242000,1000.0,0.0002277,30]
[426375015,1782335347000,-2645.2563224,0.00019307,2]
[426375018,1782335347000,-300.0,0.00019999,2]
[426375017,1782335347000,-156.0,0.00019699,2]
[426375019,1782335347000,-15323.17794599,0.0002,2]
[426375020,1782335347000,-167.11,0.00022417,2]
[426375016,1782335347000,-212.19475655,0.00019502,7]
[426375022,1782335347000,-5413.3385777,0.00023091,2]
[426375024,1782335347000,-156.188,0.00024194,2]
[426375023,1782335347000,-452.0,0.00023914,2]
[426375025,1782335347000,-150.0,0.000254,2]
[426375026,1782335347000,-970.84787374,0.000254,7]
[426375021,1782335347000,-329.5626727,0.00022623,2]
[426375027,1782335347000,-6379.32570304,0.000254,2]
[426375029,1782335350000,-108.22876658,0.00025808,2]
[426375028,1782335350000,-387.87189985,0.000254,2]
[426375042,1782335355000,-500.0,0.00025907,2]
[426375043,1782335355000,-190.1512707,0.00025907,2]
[426375045,1782335355000,-500.0,0.00025907,2]
[426375048,1782335355000,-500.0,0.00025907,2]
[426375047,1782335355000,-500.0,0.00025907,2]
[426375046,1782335355000,-500.0,0.00025907,2]
[426375041,1782335355000,-500.0,0.00025907,2]
[426375044,1782335355000,-500.0,0.00025907,2]
[426375039,1782335355000,-500.0,0.00025907,2]
[426375032,1782335355000,-500.0,0.00025907,2]
[426375038,1782335355000,-500.0,0.00025907,2]
[426375036,1782335355000,-500.0,0.00025907,2]
[426375037,1782335355000,-500.0,0.00025907,2]
[426375034,1782335355000,-500.0,0.00025907,2]
[426375035,1782335355000,-500.0,0.00025907,2]
[426375033,1782335355000,-210.1475048,0.00025907,2]
[426375031,1782335355000,-184.41647683,0.00025907,2]
[426375030,1782335355000,-4099.39352992,0.00025808,2]
[426375050,1782335355000,-500.0,0.00025907,2]
[426375040,1782335355000,-500.0,0.00025907,2]
[426375049,1782335355000,-500.0,0.00025907,2]
[426375070,1782335355000,-500.0,0.00025907,2]
[426375051,1782335355000,-500.0,0.00025907,2]
[426375052,1782335355000,-500.0,0.00025907,2]
[426375072,1782335355000,-500.0,0.00025907,2]
[426375073,1782335355000,-500.0,0.00025907,2]
[426375071,1782335355000,-500.0,0.00025907,2]
[426375068,1782335355000,-500.0,0.00025907,2]
[426375069,1782335355000,-500.0,0.00025907,2]
[426375065,1782335355000,-500.0,0.00025907,2]
[426375066,1782335355000,-500.0,0.00025907,2]
[426375063,1782335355000,-500.0,0.00025907,2]
[426375064,1782335355000,-500.0,0.00025907,2]
[426375067,1782335355000,-500.0,0.00025907,2]
[426375060,1782335355000,-500.0,0.00025907,2]
[426375062,1782335355000,-500.0,0.00025907,2]
[426375055,1782335355000,-269.23900309,0.00025907,2]
[426375054,1782335355000,-500.0,0.00025907,2]
[426375057,1782335355000,-500.0,0.00025907,2]
[426375053,1782335355000,-500.0,0.00025907,2]
[426375059,1782335355000,-500.0,0.00025907,2]
[426375058,1782335355000,-500.0,0.00025907,2]
[426375061,1782335355000,-500.0,0.00025907,2]
[426375056,1782335355000,-500.0,0.00025907,2]
[426375085,1782335356000,-500.0,0.00025907,2]
[426375094,1782335356000,-500.0,0.00025907,2]
[426375093,1782335356000,-500.0,0.00025907,2]
[426375092,1782335356000,-500.0,0.00025907,2]
[426375091,1782335356000,-500.0,0.00025907,2]
[426375089,1782335356000,-500.0,0.00025907,2]
[426375090,1782335356000,-623.69800317,0.00025907,2]
[426375088,1782335356000,-500.0,0.00025907,2]
[426375087,1782335356000,-500.0,0.00025907,2]
[426375084,1782335356000,-500.0,0.00025907,2]
[426375075,1782335356000,-500.0,0.00025907,2]
[426375083,1782335356000,-500.0,0.00025907,2]
[426375082,1782335356000,-500.0,0.00025907,2]
[426375081,1782335356000,-500.0,0.00025907,2]
[426375080,1782335356000,-500.0,0.00025907,2]
[426375079,1782335356000,-500.0,0.00025907,2]
[426375078,1782335356000,-500.0,0.00025907,2]
[426375077,1782335356000,-500.0,0.00025907,2]
[426375076,1782335356000,-500.0,0.00025907,2]
[426375074,1782335356000,-500.0,0.00025907,2]
[426375096,1782335356000,-500.0,0.00025907,2]
[426375086,1782335356000,-500.0,0.00025907,2]
[426375097,1782335356000,-512.36980032,0.00025907,2]
[426375095,1782335356000,-500.0,0.00025907,2]
[426375119,1782335356000,-4090.29,0.00027945,2]
[426375098,1782335356000,-500.0,0.00025907,2]
[426375121,1782335356000,-4090.29,0.00028219,2]
[426375120,1782335356000,-888.42271532,0.00028119,2]
[426375117,1782335356000,-475.52,0.000275,3]
[426375118,1782335356000,-4090.29,0.00027671,2]
[426375116,1782335356000,-318.29213481,0.00027432,7]
[426375115,1782335356000,-970.84787374,0.00027432,7]
[426375113,1782335356000,-4090.29,0.00027397,2]
[426375110,1782335356000,-1336.7491959,0.00026973,2]
[426375112,1782335356000,-735.28,0.000273,2]
[426375111,1782335356000,-4090.29,0.00027123,2]
[426375114,1782335356000,-325.88343393,0.00027432,7]
[426375108,1782335356000,-970.84787374,0.0002667,7]
[426375109,1782335356000,-4090.29,0.00026849,2]
[426375100,1782335356000,-500.0,0.00025907,2]
[426375101,1782335356000,-500.0,0.00025907,2]
[426375102,1782335356000,-500.0,0.00025907,2]
[426375103,1782335356000,-970.84787374,0.00025908,7]
[426375099,1782335356000,-500.0,0.00025907,2]
[426375106,1782335356000,-175.225,0.00026575,13]
[426375104,1782335356000,-217.25562262,0.00025908,7]
[426375107,1782335356000,-4090.29,0.00026575,2]
[426375105,1782335356000,-4090.29,0.00026301,2]
[426375135,1782335357000,-981.33300755,0.00028648,2]
[426375143,1782335357000,-981.33300755,0.00028648,2]
[426375142,1782335357000,-981.33300755,0.00028648,2]
[426375141,1782335357000,-981.33300755,0.00028648,2]
[426375138,1782335357000,-981.33300755,0.00028648,2]
[426375139,1782335357000,-981.33300755,0.00028648,2]
[426375140,1782335357000,-981.33300755,0.00028648,2]
[426375137,1782335357000,-981.33300755,0.00028648,2]
[426375134,1782335357000,-981.33300755,0.00028648,2]
[426375136,1782335357000,-981.33300755,0.00028648,2]
[426375132,1782335357000,-981.33300755,0.00028648,2]
[426375144,1782335357000,-981.33300755,0.00028648,2]
[426375131,1782335357000,-981.33300755,0.00028648,2]
[426375129,1782335357000,-981.33300755,0.00028648,2]
[426375130,1782335357000,-981.33300755,0.00028648,2]
[426375127,1782335357000,-363.20556267,0.00028648,2]
[426375128,1782335357000,-981.33300755,0.00028648,2]
[426375126,1782335357000,-160.0,0.00028536,2]
[426375124,1782335357000,-217.1554747,0.000285,2]
[426375125,1782335357000,-217.15547469,0.000285,2]
[426375122,1782335357000,-970.84787375,0.00028448,7]
[426375123,1782335357000,-4090.29,0.00028493,2]
[426375133,1782335357000,-981.33300755,0.00028648,2]
[426375146,1782335357000,-981.33300755,0.00028648,2]
[426375145,1782335357000,-981.33300755,0.00028648,2]
[426375148,1782335357000,-1046.75520807,0.00028648,2]
[426375170,1782335357000,-868.745533,0.00028767,2]
[426375168,1782335357000,-868.745533,0.00028767,2]
[426375169,1782335357000,-868.745533,0.00028767,2]
[426375166,1782335357000,-764.94,0.00028749,2]
[426375167,1782335357000,-151.0,0.00028767,7]
[426375165,1782335357000,-487.0,0.00028749,2]
[426375163,1782335357000,-487.0,0.00028749,2]
[426375164,1782335357000,-487.0,0.00028749,2]
[426375162,1782335357000,-487.0,0.00028749,2]
[426375160,1782335357000,-487.0,0.00028749,2]
[426375159,1782335357000,-487.0,0.00028749,2]
[426375147,1782335357000,-1046.75520807,0.00028648,2]
[426375158,1782335357000,-487.0,0.00028749,2]
[426375157,1782335357000,-300.0,0.00028748,2]
[426375156,1782335357000,-350.4,0.00028739,3]
[426375155,1782335357000,-178.82321585,0.00028649,2]
[426375154,1782335357000,-1046.75520807,0.00028648,2]
[426375153,1782335357000,-1046.75520807,0.00028648,2]
[426375152,1782335357000,-1046.75520807,0.00028648,2]
[426375151,1782335357000,-1046.75520807,0.00028648,2]
[426375150,1782335357000,-1046.75520807,0.00028648,2]
[426375149,1782335357000,-1046.75520807,0.00028648,2]
[426375171,1782335357000,-868.745533,0.00028767,2]
[426375161,1782335357000,-487.0,0.00028749,2]
[426375186,1782335358000,-222.682715,0.00028767,7]
[426375188,1782335358000,-1486.357329,0.00028767,7]
[426375189,1782335358000,-1486.357329,0.00028767,7]
[426375190,1782335358000,-1486.357329,0.00028767,7]
[426375195,1782335358000,-4240.0,0.00028767,7]
[426375192,1782335358000,-4599.562189,0.00028767,7]
[426375193,1782335358000,-4599.562189,0.00028767,7]
[426375194,1782335358000,-4599.562189,0.00028767,7]
[426375187,1782335358000,-1486.357329,0.00028767,7]
[426375191,1782335358000,-4599.562189,0.00028767,7]
[426375185,1782335358000,-224.699908,0.00028767,7]
[426375179,1782335358000,-183.207246,0.00028767,7]
[426375183,1782335358000,-224.699908,0.00028767,7]
[426375182,1782335358000,-224.699908,0.00028767,7]
[426375180,1782335358000,-183.207246,0.00028767,7]
[426375181,1782335358000,-183.207246,0.00028767,7]
[426375178,1782335358000,-183.207246,0.00028767,7]
[426375176,1782335358000,-1309.218748,0.00028767,7]
[426375177,1782335358000,-1309.218748,0.00028767,7]
[426375174,1782335358000,-1309.218748,0.00028767,7]
[426375175,1782335358000,-1309.218748,0.00028767,7]
[426375172,1782335358000,-151.0,0.00028767,7]
[426375196,1782335358000,-4240.0,0.00028767,7]
[426375184,1782335358000,-224.699908,0.00028767,7]
[426375173,1782335358000,-282.721845,0.00028767,7]
[426375198,1782335358000,-4240.0,0.00028767,7]
[426375199,1782335358000,-1276.330268,0.00028767,7]
[426375197,1782335358000,-4240.0,0.00028767,7]
[426375221,1782335358000,-3431.971279,0.00029727,7]
[426375220,1782335358000,-500.0,0.00029727,2]
[426375219,1782335358000,-4090.29,0.00029589,2]
[426375216,1782335358000,-4090.29,0.00029041,2]
[426375218,1782335358000,-294.227972,0.00029462,2]
[426375217,1782335358000,-4090.29,0.00029315,2]
[426375214,1782335358000,-627.60747826,0.00028842,2]
[426375215,1782335358000,-166.54,0.00029,2]
[426375213,1782335358000,-1000.0,0.00028842,2]
[426375211,1782335358000,-1000.0,0.00028842,2]
[426375222,1782335358000,-3431.971279,0.00029727,7]
[426375209,1782335358000,-240.360255,0.00028817,7]
[426375212,1782335358000,-1000.0,0.00028842,2]
[426375203,1782335358000,-4090.29,0.00028767,2]
[426375200,1782335358000,-1276.330268,0.00028767,7]
[426375202,1782335358000,-1276.330268,0.00028767,7]
[426375204,1782335358000,-151.0,0.000288,12]
[426375201,1782335358000,-1276.330268,0.00028767,7]
[426375208,1782335358000,-151.0,0.00028817,7]
[426375207,1782335358000,-500.0,0.00028817,2]
[426375205,1782335358000,-151.0,0.000288,19]
[426375210,1782335358000,-500.0,0.00028842,2]
[426375206,1782335358000,-151.0,0.000288,15]
[426375235,1782335359000,-1000.0,0.00030136,2]
[426375244,1782335359000,-1000.0,0.00030136,2]
[426375243,1782335359000,-1000.0,0.00030136,2]
[426375242,1782335359000,-1000.0,0.00030136,2]
[426375247,1782335359000,-1000.0,0.00030136,2]
[426375240,1782335359000,-1000.0,0.00030136,2]
[426375239,1782335359000,-1000.0,0.00030136,2]
[426375238,1782335359000,-1000.0,0.00030136,2]
[426375236,1782335359000,-1000.0,0.00030136,2]
[426375237,1782335359000,-1000.0,0.00030136,2]
[426375229,1782335359000,-1000.0,0.00030136,2]
[426375233,1782335359000,-1000.0,0.00030136,2]
[426375231,1782335359000,-1000.0,0.00030136,2]
[426375232,1782335359000,-1000.0,0.00030136,2]
[426375230,1782335359000,-1000.0,0.00030136,2]
[426375228,1782335359000,-4090.29,0.00029863,2]
[426375227,1782335359000,-178.601547,0.00029727,7]
[426375226,1782335359000,-151.0,0.00029727,7]
[426375225,1782335359000,-162.923879,0.00029727,7]
[426375224,1782335359000,-3431.971279,0.00029727,7]
[426375223,1782335359000,-3431.971279,0.00029727,7]
[426375234,1782335359000,-1000.0,0.00030136,2]
[426375245,1782335359000,-1000.0,0.00030136,2]
[426375241,1782335359000,-1000.0,0.00030136,2]
[426375249,1782335359000,-1000.0,0.00030136,2]
[426375269,1782335359000,-4090.43,0.00030137,2]
[426375270,1782335359000,-151.0,0.00030137,6]
[426375267,1782335359000,-151.0,0.00030137,6]
[426375268,1782335359000,-151.92036835,0.00030137,2]
[426375265,1782335359000,-1000.0,0.00030136,2]
[426375264,1782335359000,-1000.0,0.00030136,2]
[426375266,1782335359000,-1039.58903381,0.00030136,2]
[426375262,1782335359000,-1000.0,0.00030136,2]
[426375263,1782335359000,-1000.0,0.00030136,2]
[426375259,1782335359000,-1000.0,0.00030136,2]
[426375261,1782335359000,-1000.0,0.00030136,2]
[426375246,1782335359000,-1000.0,0.00030136,2]
[426375258,1782335359000,-1000.0,0.00030136,2]
[426375256,1782335359000,-1000.0,0.00030136,2]
[426375257,1782335359000,-1000.0,0.00030136,2]
[426375255,1782335359000,-1000.0,0.00030136,2]
[426375254,1782335359000,-1000.0,0.00030136,2]
[426375253,1782335359000,-1000.0,0.00030136,2]
[426375251,1782335359000,-1000.0,0.00030136,2]
[426375252,1782335359000,-1000.0,0.00030136,2]
[426375250,1782335359000,-1000.0,0.00030136,2]
[426375248,1782335359000,-1000.0,0.00030136,2]
[426375260,1782335359000,-1000.0,0.00030136,2]
[426375285,1782335360000,-500.0,0.00032877,10]
[426375283,1782335360000,-397.51406403,0.000325,120]
[426375286,1782335360000,-500.0,0.00032877,12]
[426375291,1782335360000,-177.78266987,0.00033611,2]
[426375293,1782335360000,-180.91013609,0.00033637,2]
[426375288,1782335360000,-294.227972,0.00033182,2]
[426375289,1782335360000,-151.92036795,0.00033512,16]
[426375292,1782335360000,-204.92383657,0.00033637,2]
[426375284,1782335360000,-160.02249609,0.00032749,120]
[426375290,1782335360000,-176.48406443,0.0003355,2]
[426375282,1782335360000,-151.92036795,0.00032481,14]
[426375278,1782335360000,-151.92036795,0.00031637,11]
[426375280,1782335360000,-294.227972,0.00031942,2]
[426375279,1782335360000,-158.0,0.00031749,120]
[426375277,1782335360000,-300.0,0.00031487,3]
[426375276,1782335360000,-151.92036795,0.00030981,9]
[426375274,1782335360000,-294.227972,0.00030702,2]
[426375275,1782335360000,-158.0,0.00030749,120]
[426375273,1782335360000,-151.92036795,0.00030512,7]
[426375272,1782335360000,-151.92036795,0.00030231,4]
[426375271,1782335360000,-1857.74036746,0.00030137,30]
[426375294,1782335360000,-171.40009754,0.00033637,2]
[426375281,1782335360000,-1000.0,0.00032,120]
[426375296,1782335360000,-294.227972,0.00034422,2]
[426375295,1782335360000,-500.0,0.00034,120]
[426375297,1782335360000,-221.70466876,0.0003452,2]
[426375321,1782335360000,-183.207246,0.00035232,7]
[426375320,1782335360000,-183.207246,0.00035232,7]
[426375319,1782335360000,-183.207246,0.00035232,7]
[426375318,1782335360000,-1309.218748,0.00035232,7]
[426375316,1782335360000,-1309.218748,0.00035232,7]
[426375315,1782335360000,-1309.218748,0.00035232,7]
[426375317,1782335360000,-1309.218748,0.00035232,7]
[426375313,1782335360000,-205.41591133,0.00035167,2]
[426375311,1782335360000,-529.45219328,0.00035167,2]
[426375312,1782335360000,-273.27088213,0.00035167,2]
[426375309,1782335360000,-353.71203909,0.00035167,2]
[426375314,1782335360000,-151.0,0.00035232,7]
[426375308,1782335360000,-443.40933752,0.00035167,2]
[426375298,1782335360000,-176.85601954,0.0003452,2]
[426375310,1782335360000,-208.11340567,0.00035167,2]
[426375300,1782335360000,-500.0,0.00034553,2]
[426375301,1782335360000,-355.56533973,0.00034584,2]
[426375302,1782335360000,-197.49483615,0.00034584,2]
[426375299,1782335360000,-352.96812885,0.0003452,2]
[426375304,1782335360000,-361.82027219,0.0003461,2]
[426375306,1782335360000,-342.80019507,0.0003461,2]
[426375307,1782335360000,-151.92036795,0.00034731,18]
[426375305,1782335360000,-157.56356031,0.0003461,2]
[426375303,1782335360000,-409.84767314,0.0003461,2]
[426375334,1782335361000,-180.88797743,0.00035259,2]
[426375344,1782335361000,-294.227972,0.00035663,2]
[426375342,1782335361000,-1000.0,0.00035633,2]
[426375341,1782335361000,-500.0,0.00035633,2]
[426375339,1782335361000,-705.9362577,0.00035598,2]
[426375340,1782335361000,-410.83182265,0.00035598,2]
[426375338,1782335361000,-416.22681135,0.00035598,2]
[426375337,1782335361000,-530.56805863,0.00035598,2]
[426375336,1782335361000,-198.61917121,0.00035598,2]
[426375335,1782335361000,-252.37008457,0.00035259,2]
[426375322,1782335361000,-183.207246,0.00035232,7]
[426375333,1782335361000,-514.20029261,0.00035259,2]
[426375332,1782335361000,-315.12712061,0.00035259,2]
[426375331,1782335361000,-542.73040828,0.00035259,2]
[426375329,1782335361000,-430.19649285,0.00035259,2]
[426375326,1782335361000,-242.19560166,0.00035232,2]
[426375325,1782335361000,-282.58229871,0.00035232,2]
[426375327,1782335361000,-394.98967229,0.00035232,2]
[426375328,1782335361000,-204.01554706,0.00035232,2]
[426375323,1782335361000,-533.3480096,0.00035232,2]
[426375324,1782335361000,-184.61163428,0.00035232,2]
[426375345,1782335361000,-174.12296379,0.00035664,2]
[426375330,1782335361000,-614.77150971,0.00035259,2]
[426375346,1782335361000,-342.42195701,0.00035664,2]
[426375343,1782335361000,-1000.0,0.00035633,2]
[426375347,1782335361000,-711.13067947,0.00035664,2]
[426375370,1782335361000,-311.20487835,0.00035692,2]
[426375371,1782335361000,-819.69534628,0.00035692,2]
[426375368,1782335361000,-319.66377249,0.00035692,2]
[426375369,1782335361000,-161.62329887,0.00035692,2]
[426375366,1782335361000,-504.74016913,0.00035692,2]
[426375367,1782335361000,-383.18109259,0.00035692,2]
[426375364,1782335361000,-308.51443241,0.00035692,2]
[426375365,1782335361000,-345.07500277,0.00035692,2]
[426375363,1782335361000,-361.77595485,0.00035692,2]
[426375361,1782335361000,-472.69068092,0.00035692,2]
[426375362,1782335361000,-685.60039015,0.00035692,2]
[426375348,1782335361000,-335.94699204,0.00035664,2]
[426375359,1782335361000,-157.11696314,0.00035692,2]
[426375358,1782335361000,-215.09824642,0.00035692,2]
[426375357,1782335361000,-369.22326855,0.00035664,2]
[426375355,1782335361000,-318.70592727,0.00035664,2]
[426375356,1782335361000,-408.03109411,0.00035664,2]
[426375353,1782335361000,-484.39120332,0.00035664,2]